bitfinex/quotes_SOLUSD_20250219
["timestamp","ask_amount","ask_price","bid_price","bid_amount"]
[1739995871679,24.14442308,169.5,169.47,20.0]
[1739995872389,24.14442308,169.49,169.45,5.9644]
[1739995872597,24.14442308,169.46,169.45,0.063]
[1739995872800,24.14442308,169.47,169.45,0.063]
[1739995874492,24.14442308,169.46,169.45,0.063]
[1739995875005,24.14442308,169.47,169.45,0.063]
[1739995875217,24.14442308,169.46,169.45,0.063]
[1739995875389,42.79407194,169.46,169.45,0.063]
[1739995875881,18.64964886,169.46,169.45,0.063]
[1739995876301,161.44442308,169.47,169.45,0.063]
[1739995876518,24.14442308,169.46,169.45,0.063]
[1739995877183,146.52207325,169.56,169.46,20.0]
[1739995877409,170.66649633,169.56,169.49,24.14442308]
[1739995877902,18.64964886,169.55,169.49,30.04422308]
[1739995878104,42.79407194,169.55,169.49,30.04422308]
[1739995878295,42.79407194,169.55,169.49,5.8998]
[1739995879701,42.79407194,169.55,169.49,24.14442308]
[1739995880087,42.79407194,169.55,169.48,44.14442308]
[1739995880788,83.0,169.57,169.52,24.14442308]
[1739995881685,83.0,169.57,169.52,5.899]
[1739995882312,107.14442308,169.57,169.52,5.899]
[1739995883409,24.14442308,169.55,169.52,5.899]
[1739995883789,24.14442308,169.55,169.5,20.6484]
[1739995883990,107.14442308,169.57,169.5,44.79282308]
[1739995888014,24.14442308,169.56,169.5,44.79282308]
[1739995889287,107.14442308,169.57,169.5,44.79282308]
[1739995890701,107.14442308,169.57,169.51,24.14442308]
[1739995890900,83.0,169.57,169.5,74.29132308]
[1739995891106,83.0,169.59,169.54,24.14442308]
[1739995891616,83.0,169.59,169.53,44.14442308]
[1739995891807,107.14442308,169.59,169.52,24.14442308]
[1739995892797,107.14442308,169.59,169.53,5.8986]
[1739995893214,24.14442308,169.58,169.53,5.8986]
[1739995893414,24.14442308,169.57,169.53,5.8986]
[1739995894120,24.14442308,169.58,169.53,5.8986]
[1739995894322,83.0,169.59,169.53,20.6452]
[1739995894517,107.14442308,169.59,169.53,5.8986]
[1739995894721,24.14442308,169.58,169.53,5.8986]
[1739995895923,107.14442308,169.59,169.53,20.6452]
[1739995897019,24.14442308,169.6,169.54,24.14442308]
[1739995897206,83.03,169.61,169.55,24.14442308]
[1739995897410,107.17442308,169.61,169.54,24.14442308]
[1739995897596,0.03,169.61,169.57,20.0]
[1739995897800,0.03,169.61,169.6,24.14442308]
[1739995898906,0.03,169.61,169.6,30.04062308]
[1739995899105,0.03,169.61,169.6,32.99660549]
[1739995902124,0.03,169.61,169.6,5.8962]
[1739995902322,24.17442308,169.61,169.58,20.0]
[1739995902530,24.17442308,169.61,169.55,5.8979]
[1739995902531,24.14442308,169.6,169.55,5.8979]
[1739995902730,24.14442308,169.59,169.55,5.8979]
[1739995903103,24.14442308,169.59,169.54,14.7452]
[1739995903304,24.14442308,169.59,169.54,20.6435]
[1739995903519,24.14442308,169.6,169.54,20.6435]
[1739995905325,24.17442308,169.6,169.54,20.6435]
[1739995905727,24.14442308,169.59,169.54,5.8983]
[1739995908305,24.14442308,169.58,169.54,5.8983]
[1739995908610,24.14442308,169.57,169.54,5.8983]
[1739995908810,24.14442308,169.58,169.54,5.8983]
[1739995910222,24.14442308,169.58,169.53,5.8986]
[1739995910821,24.14442308,169.59,169.53,5.8986]
[1739995911922,24.14442308,169.58,169.53,5.8986]
[1739995912734,24.14442308,169.57,169.53,5.8986]
[1739995913125,24.14442308,169.54,169.51,5.9621]
[1739995913335,24.14442308,169.54,169.51,0.063]
[1739995913527,24.14442308,169.54,169.51,5.9623]
[1739995913842,18.64964886,169.57,169.51,5.9623]
[1739995914034,24.14442308,169.55,169.51,5.9623]
[1739995914214,18.64964886,169.57,169.51,5.9623]
[1739995914215,107.14442308,169.54,169.51,0.063]
[1739995914936,24.14442308,169.53,169.51,0.063]
[1739995915138,24.14442308,169.52,169.51,0.063]
[1739995917217,24.14442308,169.53,169.51,0.063]
[1739995918620,24.14442308,169.52,169.51,0.063]
[1739995918817,83.0,169.56,169.51,0.063]
[1739995919033,83.0,169.56,169.51,24.20742308]
[1739995920635,107.14442308,169.56,169.51,0.063]
[1739995920852,24.14442308,169.54,169.51,0.063]
[1739995921041,24.14442308,169.53,169.51,0.063]
[1739995921215,18.64964886,169.55,169.51,0.063]
[1739995921216,125.79407194,169.52,169.51,0.063]
[1739995921543,74.56139502,169.52,169.51,0.063]
[1739995921839,24.14442308,169.47,169.45,0.063]
[1739995923443,24.14442308,169.48,169.45,0.063]
[1739995924141,24.14442308,169.47,169.45,0.063]
[1739995924338,24.14442308,169.46,169.45,0.063]
[1739995924527,42.79407194,169.46,169.45,0.063]
[1739995925433,48.69507194,169.46,169.45,0.063]
[1739995925653,51.27917194,169.46,169.45,0.063]
[1739995925851,75.42359502,169.46,169.45,0.063]
[1739995926023,44.37817194,169.46,169.45,0.063]
[1739995927140,50.27917194,169.46,169.45,0.063]
[1739995927320,52.27917194,169.46,169.45,0.063]
[1739995928661,50.27917194,169.46,169.45,0.063]
[1739995928840,44.37817194,169.46,169.45,0.063]
[1739995930150,50.27917194,169.46,169.45,0.063]
[1739995930531,44.37817194,169.46,169.45,0.063]
[1739995931031,24.14442308,169.46,169.45,0.063]
[1739995931359,7.5661,169.51,169.45,0.063]
[1739995931360,24.14442308,169.47,169.45,0.063]
[1739995932337,24.14442308,169.46,169.45,0.063]
[1739995933650,42.79407194,169.48,169.45,0.063]
[1739995934349,24.14442308,169.47,169.45,0.063]
[1739995934933,24.14442308,169.49,169.45,0.063]
[1739995935134,137.33,169.52,169.46,24.14442308]
[1739995935367,18.67964886,169.52,169.46,24.14442308]
[1739995935557,83.0,169.51,169.46,24.14442308]
[1739995935866,83.0,169.51,169.47,5.9007]
[1739995936253,24.17442308,169.52,169.47,5.9007]
[1739995936551,0.03,169.52,169.47,5.9007]
[1739995937676,0.03,169.52,169.49,30.04442308]
[1739995937853,0.03,169.52,169.5,24.14442308]
[1739995938579,107.14442308,169.51,169.45,0.063]
[1739995938745,24.14442308,169.5,169.45,0.063]
[1739995939663,24.14442308,169.49,169.45,5.9644]
[1739995939859,24.14442308,169.48,169.45,5.9644]
[1739995940157,24.14442308,169.48,169.45,0.063]
[1739995940358,24.14442308,169.5,169.45,0.063]
[1739995940659,83.0,169.51,169.45,24.20742308]
[1739995941048,83.0,169.51,169.46,24.14442308]
[1739995941254,83.0,169.51,169.47,24.14442308]
[1739995941441,0.03,169.52,169.46,24.14442308]
[1739995941442,24.17442308,169.52,169.46,24.14442308]
[1739995941842,24.17442308,169.52,169.47,5.9007]
[1739995942644,15.10023896,169.52,169.47,5.9007]
[1739995942960,15.07023896,169.49,169.45,5.9643]
[1739995943749,15.07023896,169.49,169.45,0.063]
[1739995944139,15.07023896,169.47,169.45,0.063]
[1739995945262,83.0,169.5,169.45,0.063]
[1739995945461,83.0,169.5,169.46,15.07023896]
[1739995945663,0.03,169.52,169.47,15.07023896]
[1739995946162,0.03,169.52,169.46,15.07023896]
[1739995946374,0.03,169.52,169.46,35.07023896]
[1739995946961,0.03,169.52,169.47,24.10951065]
[1739995947160,0.03,169.52,169.49,24.10951065]
[1739995947367,0.03,169.52,169.51,24.10951065]
[1739995949354,0.03,169.52,169.51,30.00881065]
[1739995951461,83.0,169.58,169.51,30.00881065]
[1739995951654,0.03,169.59,169.55,24.10951065]
[1739995953361,0.03,169.59,169.54,44.10951065]
[1739995954156,0.03,169.59,169.56,24.10951065]
[1739995955352,0.03,169.59,169.55,44.75231065]
[1739995957575,0.03,169.59,169.55,47.66907577]
[1739995957773,0.03,169.59,169.55,128.36907577]
[1739995958285,0.03,169.59,169.56,30.27771065]
[1739995958756,0.03,169.59,169.56,6.1682]
[1739995959187,0.03,169.59,169.57,5.8972]
[1739995959395,24.10951065,169.58,169.55,80.7]
[1739995959679,0.03,169.59,169.55,80.7]
[1739995959680,24.10951065,169.56,169.55,80.7]
[1739995961416,0.03,169.59,169.55,80.7]
[1739995961592,0.03,169.59,169.55,86.5979]
[1739995961883,24.10951065,169.58,169.55,86.5979]
[1739995962904,24.10951065,169.58,169.55,80.7]
[1739995963397,24.10951065,169.57,169.55,80.7]
[1739995963688,24.10951065,169.56,169.53,5.8985]
[1739995964311,83.03,169.59,169.53,5.8985]
[1739995964510,24.10951065,169.58,169.53,5.8985]
[1739995965008,83.03,169.59,169.53,5.8985]
[1739995965382,24.10951065,169.58,169.52,5.899]
[1739995967677,24.10951065,169.57,169.52,5.899]
[1739995967882,24.10951065,169.54,169.51,0.063]
[1739995968095,24.10951065,169.53,169.51,0.063]
[1739995968606,24.10951065,169.52,169.51,0.063]
[1739995968810,15.07285209,169.52,169.51,0.063]
[1739995969193,33.72250095,169.52,169.51,0.063]
[1739995969578,15.07285209,169.52,169.51,0.063]
[1739995970587,15.07285209,169.54,169.51,0.063]
[1739995970793,98.07285209,169.55,169.51,0.063]
[1739995971806,15.07285209,169.54,169.51,0.063]
[1739995973514,83.0,169.55,169.51,0.063]
[1739995974117,83.0,169.55,169.51,15.13585209]
[1739995975185,98.07285209,169.58,169.52,20.97185209]
[1739995975391,83.0,169.58,169.53,15.07285209]
[1739995977112,83.0,169.58,169.54,5.8983]
[1739995977913,98.07285209,169.58,169.52,15.07285209]
[1739995978118,15.07285209,169.57,169.52,5.899]
[1739995978599,98.10285209,169.58,169.52,5.899]
[1739995984828,83.03,169.58,169.54,15.07285209]
[1739995985114,83.03,169.58,169.52,20.6465]
[1739995985115,0.03,169.58,169.57,15.07285209]
[1739995985713,0.03,169.58,169.56,15.07285209]
[1739995986524,0.03,169.58,169.57,5.8972]
[1739995986898,0.03,169.58,169.57,20.97005209]
[1739995988421,0.03,169.58,169.57,5.8972]
[1739995989696,0.03,169.58,169.55,106.5977]
[1739995990097,0.03,169.58,169.55,121.67055209]
[1739995990494,0.03,169.58,169.55,40.97055209]
[1739995991301,0.03,169.58,169.57,15.07285209]
[1739995992726,0.03,169.58,169.55,49.81775209]
[1739995993205,0.03,169.58,169.56,15.07285209]
[1739995993396,0.03,169.58,169.57,15.07285209]
[1739995994923,0.03,169.6,169.59,20.0]
[1739995995239,83.03,169.69,169.6,5.917]
[1739995995526,83.03,169.69,169.65,15.07285209]
[1739995995727,0.03,169.69,169.65,15.07285209]
[1739995997125,0.03,169.69,169.66,5.8941]
[1739995998421,15.07285209,169.67,169.64,5.8948]
[1739995999007,15.07285209,169.68,169.64,5.8948]
[1739995999633,98.10285209,169.69,169.64,5.8948]
[1739995999799,83.03,169.69,169.64,5.8948]
[1739996000127,83.03,169.69,169.64,35.70465209]
[1739996001631,83.03,169.69,169.64,20.6318]
[1739996001921,98.10285209,169.69,169.64,20.6318]
[1739996002445,15.07285209,169.68,169.64,5.8948]
[1739996002729,15.07285209,169.66,169.62,5.8955]
[1739996002937,15.07285209,169.65,169.62,5.8955]
[1739996003304,15.07285209,169.65,169.61,0.063]
[1739996003806,15.07285209,169.63,169.61,0.063]
[1739996004426,18.64964886,169.66,169.61,0.063]
[1739996004427,15.07285209,169.65,169.61,0.063]
[1739996006018,15.07285209,169.63,169.61,0.063]
[1739996008314,15.07285209,169.64,169.61,0.063]
[1739996008627,98.07285209,169.65,169.61,0.063]
[1739996008827,15.07285209,169.64,169.61,0.063]
[1739996009831,15.07285209,169.63,169.61,0.063]
[1739996012610,15.07285209,169.64,169.61,0.063]
[1739996013537,15.07285209,169.63,169.61,0.063]
[1739996013749,15.07285209,169.62,169.61,0.063]
[1739996014223,33.72250095,169.62,169.61,0.063]
[1739996015818,39.61800095,169.62,169.61,0.063]
[1739996016013,44.19800095,169.62,169.61,0.063]
[1739996017344,38.30250095,169.62,169.61,0.063]
[1739996018839,44.19800095,169.62,169.61,0.063]
[1739996023321,38.30250095,169.62,169.61,0.063]
[1739996024029,44.19800095,169.62,169.61,0.063]
[1739996024346,45.19800095,169.62,169.61,0.063]
[1739996024746,39.76359678,169.62,169.61,0.063]
[1739996026752,1.5913,169.59,169.52,0.063]
[1739996026924,28.28809678,169.53,169.52,0.063]
[1739996028734,33.72131253,169.53,169.52,0.063]
[1739996029951,39.61991253,169.53,169.52,0.063]
[1739996030157,55.6915762,169.53,169.52,0.063]
[1739996030342,58.2828762,169.53,169.52,0.063]
[1739996031534,42.21121253,169.53,169.52,0.063]
[1739996032148,58.2828762,169.53,169.52,0.063]
[1739996032750,57.2828762,169.53,169.52,0.063]
[1739996033061,58.2828762,169.53,169.52,0.063]
[1739996033357,61.18507616,169.53,169.52,0.063]
[1739996034949,20.64964886,169.52,169.51,0.063]
[1739996035145,18.64964886,169.48,169.45,0.063]
[1739996035339,33.72131253,169.46,169.45,0.063]
[1739996040463,39.62231253,169.46,169.45,0.063]
[1739996040863,33.72131253,169.46,169.45,0.063]
[1739996041561,39.62231253,169.46,169.45,0.063]
[1739996042879,18.64964886,169.46,169.45,0.063]
[1739996043444,33.72131253,169.46,169.45,0.063]
[1739996044147,39.62231253,169.46,169.45,0.063]
[1739996045671,33.72131253,169.46,169.45,0.063]
[1739996045872,18.64964886,169.46,169.45,0.063]
[1739996046292,137.3,169.47,169.45,0.063]
[1739996046459,152.37166367,169.52,169.45,16.65716367]
[1739996046780,15.07166367,169.55,169.48,15.07166367]
[1739996047076,15.07166367,169.55,169.49,15.07166367]
[1739996047279,18.64964886,169.54,169.49,15.07166367]
[1739996047771,18.64964886,169.54,169.5,5.8997]
[1739996047971,101.64964886,169.54,169.5,5.8997]
[1739996048862,116.72131253,169.54,169.48,15.07166367]
[1739996049469,116.72131253,169.54,169.47,20.97236367]
[1739996050066,116.75131253,169.54,169.47,20.97236367]
[1739996050866,83.03,169.54,169.49,15.07166367]
[1739996051172,83.03,169.54,169.51,15.07166367]
[1739996051173,0.03,169.54,169.51,15.07166367]
[1739996051479,0.03,169.54,169.53,15.07166367]
[1739996053175,0.03,169.54,169.53,20.97026367]
[1739996053483,0.03,169.54,169.53,20.0]
[1739996053987,0.03,169.54,169.53,35.07166367]
[1739996054882,0.03,169.54,169.53,20.0]
[1739996055184,0.03,169.54,169.53,40.97026367]
[1739996056381,83.0,169.61,169.53,40.97026367]
[1739996056382,83.0,169.61,169.53,55.71686367]
[1739996056585,0.03,169.62,169.57,15.07166367]
[1739996057286,15.10166367,169.62,169.57,20.0]
[1739996057681,0.03,169.62,169.57,35.07166367]
[1739996057893,0.03,169.62,169.57,36.67316367]
[1739996058299,0.03,169.62,169.57,21.6015]
[1739996059009,0.03,169.62,169.57,36.67316367]
[1739996059195,0.03,169.62,169.58,5.8969]
[1739996060355,0.03,169.62,169.59,15.07166367]
[1739996060516,0.03,169.62,169.6,15.07166367]
[1739996060718,0.03,169.62,169.61,15.07166367]
[1739996061322,0.03,169.62,169.61,20.96746367]
[1739996064921,0.03,169.62,169.61,101.66746367]
[1739996066013,0.03,169.62,169.61,86.5958]
[1739996066216,0.03,169.62,169.61,80.7]
[1739996067503,98.10166367,169.62,169.55,15.07166367]
[1739996067699,15.07166367,169.6,169.54,95.83466367]
[1739996067915,15.07166367,169.61,169.55,20.96956367]
[1739996068221,83.03,169.62,169.56,15.07166367]
[1739996068406,83.03,169.62,169.57,15.07166367]
[1739996068809,83.03,169.62,169.56,15.07166367]
[1739996069020,15.07166367,169.61,169.55,20.96956367]
[1739996069514,98.10166367,169.62,169.55,20.96956367]
[1739996069826,98.10166367,169.62,169.56,15.07166367]
[1739996070219,98.10166367,169.62,169.57,5.8972]
[1739996070427,83.03,169.62,169.57,5.8972]
[1739996070926,83.03,169.62,169.57,35.71196367]
[1739996071621,83.03,169.62,169.57,20.96886367]
[1739996071814,83.03,169.62,169.58,15.07166367]
[1739996072698,83.03,169.62,169.57,20.96886367]
[1739996073295,33.72131253,169.61,169.56,5.8975]
[1739996073501,15.07166367,169.6,169.56,5.8975]
[1739996073896,33.72131253,169.61,169.56,5.8975]
[1739996074212,18.64964886,169.61,169.56,5.8975]
[1739996074397,98.10166367,169.62,169.56,5.8975]
[1739996074606,83.03,169.62,169.56,20.96916367]
[1739996075000,98.10166367,169.62,169.56,20.96916367]
[1739996075199,83.03,169.62,169.57,15.07166367]
[1739996075719,83.03,169.62,169.57,13.82166367]
[1739996076603,0.03,169.62,169.57,13.82166367]
[1739996076800,0.03,169.62,169.58,5.8969]
[1739996076998,0.03,169.62,169.57,19.71876367]
[1739996078119,0.03,169.62,169.58,15.07166367]
[1739996078417,0.03,169.62,169.59,15.07166367]
[1739996078801,0.03,169.62,169.61,35.07166367]
[1739996080036,0.03,169.62,169.61,40.96746367]
[1739996082584,0.03,169.62,169.61,121.66746367]
[1739996083020,0.03,169.69,169.68,1.0]
[1739996083217,0.0001,169.72,169.71,20.0]
[1739996083415,3.03254422,169.79,169.71,36.07166367]
[1739996083631,0.03,169.79,169.76,15.07166367]
[1739996083793,0.03,169.79,169.77,15.07166367]
[1739996083998,0.03,169.79,169.76,15.07166367]
[1739996084196,0.03,169.79,169.75,15.07166367]
[1739996084498,0.03,169.79,169.76,5.8906]
[1739996086476,0.03,169.79,169.76,20.96226367]
[1739996087806,18.64964886,169.78,169.72,20.96366367]
[1739996087995,33.72131253,169.78,169.72,5.892]
[1739996088703,33.72131253,169.78,169.72,20.96366367]
[1739996089499,0.03,169.79,169.73,15.07166367]
[1739996089699,0.03,169.79,169.74,15.07166367]
[1739996090000,0.03,169.79,169.72,20.6221]
[1739996090001,0.03,169.79,169.75,15.07166367]
[1739996090198,0.03,169.79,169.73,15.07166367]
[1739996090199,15.10166367,169.79,169.73,15.07166367]
[1739996090382,15.10166367,169.79,169.74,5.8913]
[1739996091083,18.67964886,169.79,169.74,20.96296367]
[1739996091598,101.67964886,169.79,169.74,20.96296367]
[1739996091900,116.75131253,169.79,169.74,5.8913]
[1739996092089,15.07166367,169.78,169.74,5.8913]
[1739996092682,15.07166367,169.78,169.72,5.892]
[1739996093084,15.07166367,169.78,169.72,20.96366367]
[1739996093676,101.67964886,169.79,169.73,15.07166367]
[1739996093677,116.75131253,169.79,169.73,15.07166367]
[1739996094096,116.75131253,169.79,169.74,5.8913]
[1739996096209,122.64101253,169.79,169.72,15.07166367]
[1739996096416,15.07166367,169.78,169.71,20.96406367]
[1739996096601,116.75131253,169.79,169.72,15.07166367]
[1739996097514,18.64964886,169.77,169.72,15.07166367]
[1739996097686,83.0,169.78,169.73,15.07166367]
[1739996098217,83.0,169.78,169.74,5.8913]
[1739996101316,18.64964886,169.77,169.72,15.13466367]
[1739996101566,15.07166367,169.74,169.72,0.063]
[1739996101723,18.64964886,169.73,169.72,0.063]
[1739996102018,83.0,169.74,169.72,0.063]
[1739996102187,19.69166367,169.78,169.72,5.9549]
[1739996102388,83.0,169.77,169.72,21.02656367]
[1739996102692,98.07166367,169.77,169.72,5.9549]
[1739996103005,33.72131253,169.76,169.72,0.063]
[1739996105895,18.64964886,169.74,169.72,0.063]
[1739996106102,116.72131253,169.73,169.72,0.063]
[1739996106320,33.72131253,169.73,169.72,0.063]
[1739996106538,35.72131253,169.73,169.72,0.063]
[1739996106732,18.64964886,169.7,169.61,5.8958]
[1739996106916,18.64964886,169.66,169.61,5.8958]
[1739996107320,18.64964886,169.64,169.59,5.8962]
[1739996107518,15.07166367,169.62,169.55,15.13466367]
[1739996107699,18.64964886,169.6,169.55,21.03256367]
[1739996108230,15.07166367,169.6,169.55,0.063]
[1739996108416,15.07166367,169.61,169.55,0.063]
[1739996108801,15.07166367,169.61,169.55,15.13466367]
[1739996110022,15.07166367,169.61,169.55,21.03246367]
[1739996111431,33.72131253,169.62,169.55,21.03246367]
[1739996111730,15.07166367,169.61,169.55,21.03246367]
[1739996112310,18.64964886,169.59,169.55,21.03246367]
[1739996114128,83.0,169.6,169.56,15.07166367]
[1739996114335,83.0,169.6,169.59,15.07166367]
[1739996114514,98.07166367,169.67,169.59,15.07166367]
[1739996114830,83.0,169.66,169.62,15.07166367]
[1739996115133,18.64964886,169.65,169.62,15.07166367]
[1739996115825,18.64964886,169.65,169.62,20.96706367]
[1739996116634,18.64964886,169.65,169.62,15.07166367]
[1739996116826,33.72131253,169.65,169.59,15.07166367]
[1739996117026,18.64964886,169.63,169.59,5.8963]
[1739996117417,18.64964886,169.63,169.59,20.96796367]
[1739996117813,83.0,169.65,169.6,15.07166367]
[1739996118014,83.0,169.65,169.63,15.07166367]
[1739996118331,83.0,169.67,169.63,15.07166367]
[1739996118524,18.64964886,169.66,169.63,15.07166367]
[1739996118721,18.64964886,169.66,169.62,15.07166367]
[1739996119027,18.64964886,169.66,169.6,15.07166367]
[1739996119411,33.72131253,169.66,169.59,20.6377]
[1739996119620,33.72131253,169.66,169.61,5.8958]
[1739996120357,15.07166367,169.65,169.58,15.07166367]
[1739996120527,33.72131253,169.61,169.55,80.763]
[1739996120837,33.72131253,169.57,169.55,0.063]
[1739996121034,33.72131253,169.56,169.55,0.063]
[1739996121226,18.64964886,169.56,169.55,0.063]
[1739996122938,101.64964886,169.56,169.55,0.063]
[1739996123137,116.72131253,169.56,169.55,0.063]
[1739996123445,33.72131253,169.56,169.55,0.063]
[1739996126430,18.64964886,169.56,169.55,0.063]
[1739996126744,19.69166367,169.58,169.55,0.063]
[1739996127132,83.0,169.57,169.55,0.063]
[1739996130640,98.07166367,169.57,169.55,0.063]
[1739996134054,18.64964886,169.56,169.55,0.063]
[1739996134554,39.61891253,169.56,169.55,0.063]
[1739996137051,33.72131253,169.56,169.55,0.063]
[1739996137238,18.64964886,169.56,169.55,0.063]
[1739996137443,33.72131253,169.56,169.55,0.063]
[1739996138154,39.61891253,169.56,169.55,0.063]
[1739996138458,33.72131253,169.56,169.55,0.063]
[1739996138748,33.72131253,169.56,169.54,0.063]
[1739996138749,19.64964886,169.55,169.45,0.063]
[1739996138948,15.07166367,169.5,169.45,0.063]
[1739996139151,18.64964886,169.49,169.45,0.063]
[1739996139337,220.3,169.52,169.46,15.07166367]
[1739996139938,18.64964886,169.51,169.45,15.13466367]
[1739996140138,18.64964886,169.49,169.45,0.063]
[1739996141253,18.64964886,169.47,169.45,0.063]
[1739996141639,33.72131253,169.47,169.45,0.063]
[1739996142469,18.64964886,169.47,169.45,0.063]
[1739996143264,83.0,169.48,169.45,0.063]
[1739996143447,83.0,169.48,169.45,15.13466367]
[1739996143755,83.0,169.48,169.46,15.07166367]
[1739996144063,83.0,169.53,169.47,15.07166367]
[1739996144361,18.64964886,169.52,169.47,15.07166367]
[1739996144658,18.64964886,169.5,169.45,15.13466367]
[1739996144975,98.07166367,169.53,169.46,15.07166367]
[1739996145140,18.64964886,169.51,169.45,15.13466367]
[1739996145342,18.64964886,169.49,169.45,0.063]
[1739996145737,15.07166367,169.51,169.45,21.03606367]
[1739996146375,15.07166367,169.48,169.45,0.063]
[1739996146539,18.64964886,169.47,169.45,0.063]
[1739996147744,15.07166367,169.5,169.45,0.063]
[1739996148744,18.64964886,169.5,169.45,15.13466367]
[1739996148943,83.0,169.51,169.46,15.07166367]
[1739996149362,15.07166367,169.49,169.45,0.063]
[1739996150848,15.07166367,169.46,169.45,0.063]
[1739996151167,33.72131253,169.46,169.45,0.063]
[1739996152763,42.78843957,169.46,169.45,0.063]
[1739996153058,48.68943957,169.46,169.45,0.063]
[1739996153644,42.78843957,169.46,169.45,0.063]
[1739996153846,42.78843957,169.46,169.44,0.063]
[1739996154051,180.08843957,169.45,169.44,0.063]
[1739996155177,155.94964886,169.45,169.44,0.063]
[1739996155465,18.64964886,169.45,169.44,0.063]
[1739996155648,101.64964886,169.45,169.44,0.063]
[1739996157051,107.13879071,169.49,169.44,0.063]
[1739996157248,18.64964886,169.48,169.44,0.063]
[1739996157651,101.64964886,169.48,169.44,0.063]
[1739996158052,125.78843957,169.48,169.44,0.063]
[1739996158972,24.13879071,169.46,169.44,0.063]
[1739996159668,24.13879071,169.47,169.44,0.063]
[1739996160470,24.13879071,169.46,169.44,0.063]
[1739996161168,42.78843957,169.47,169.44,0.063]
[1739996162251,24.13879071,169.46,169.44,0.063]
[1739996162773,125.78843957,169.47,169.44,0.063]
[1739996163474,24.13879071,169.46,169.44,0.063]
[1739996164271,125.78843957,169.47,169.44,0.063]
[1739996164676,18.64964886,169.45,169.44,0.063]
[1739996164859,42.78843957,169.45,169.44,0.063]
[1739996165256,18.64964886,169.45,169.44,0.063]
[1739996165482,161.43879071,169.46,169.44,0.063]
[1739996165483,137.3,169.46,169.44,0.063]
[1739996165654,161.43879071,169.46,169.44,0.063]
[1739996165963,42.78843957,169.45,169.44,0.063]
[1739996167559,48.68983957,169.45,169.44,0.063]
[1739996167877,42.78843957,169.45,169.44,0.063]
[1739996168086,18.64964886,169.45,169.44,0.063]
[1739996169158,42.78843957,169.45,169.44,0.063]
[1739996172577,18.64964886,169.45,169.44,0.063]
[1739996172784,33.7316728,169.45,169.44,0.063]
[1739996172988,33.7316728,169.45,169.42,0.063]
[1739996172989,39.6330728,169.45,169.42,0.063]
[1739996173286,18.64964886,169.42,169.38,0.063]
[1739996173478,33.7316728,169.39,169.38,0.063]
[1739996174184,39.6351728,169.39,169.38,0.063]
[1739996175384,33.7316728,169.39,169.38,0.063]
[1739996175569,15.08202394,169.4,169.38,0.063]
[1739996175970,33.7316728,169.4,169.38,0.063]
[1739996176177,15.08202394,169.39,169.38,0.063]
[1739996176388,39.6351728,169.39,169.38,0.063]
[1739996176613,41.98752301,169.39,169.38,0.063]
[1739996176887,38.64964886,169.36,169.35,0.063]
[1739996177092,69.81369674,169.36,169.35,0.063]
[1739996177591,1.0,169.35,169.34,0.063]
[1739996177771,33.7316728,169.29,169.22,80.7]
[1739996177968,15.08202394,169.29,169.22,15.08202394]
[1739996178179,20.0,169.32,169.23,15.08202394]
[1739996178471,15.08202394,169.29,169.23,5.909]
[1739996178676,42.82795517,169.29,169.23,5.909]
[1739996179087,42.82795517,169.29,169.22,30.08760631]
[1739996179291,42.82795517,169.29,169.21,7.5609]
[1739996179475,71.58626148,169.29,169.2,6.1768]
[1739996180400,77.49326148,169.29,169.2,6.1768]
[1739996180579,23.22964886,169.29,169.22,24.17830631]
[1739996180775,24.17830631,169.3,169.24,24.17830631]
[1739996180969,24.17830631,169.33,169.27,24.24130631]
[1739996181167,4.58,169.35,169.27,24.24130631]